bitfinex/quotes_SOLUSD_20250814
["timestamp","ask_amount","ask_price","bid_price","bid_amount"]
[1755145008928,0.74,207.71,207.64,34.92]
[1755145009629,0.74,207.71,207.65,34.92]
[1755145009810,0.74,207.71,207.66,34.92]
[1755145010008,0.68,207.7,207.66,34.92]
[1755145010207,0.68,207.69,207.66,34.92]
[1755145010821,0.68,207.68,207.66,34.92]
[1755145011137,0.06,207.71,207.66,38.8313829]
[1755145011310,0.68,207.68,207.66,38.8313829]
[1755145011512,0.06,207.71,207.66,38.8313829]
[1755145011736,0.68,207.7,207.66,38.8313829]
[1755145011924,0.68,207.69,207.66,38.8313829]
[1755145013516,0.06,207.71,207.67,0.7]
[1755145013745,0.06,207.77,207.67,10.7]
[1755145013920,0.06,207.77,207.67,12.620537]
[1755145014116,0.06,207.77,207.69,10.0]
[1755145014431,0.06,207.77,207.7,35.68]
[1755145014638,0.06,207.77,207.71,0.7]
[1755145015015,0.06,207.77,207.73,34.62]
[1755145015215,0.06,207.77,207.74,35.68]
[1755145018320,0.06,207.77,207.74,34.98]
[1755145019633,0.68,207.76,207.73,34.62]
[1755145019837,0.68,207.76,207.74,34.9]
[1755145020054,0.06,207.77,207.74,34.9]
[1755145020239,0.68,207.75,207.74,34.9]
[1755145020538,0.68,207.75,207.74,34.96]
[1755145021334,0.68,207.75,207.66,3.9113829]
[1755145021537,9.42275447,207.73,207.63,3.82972817]
[1755145021744,0.69,207.72,207.64,34.96]
[1755145021937,9.42275447,207.7,207.6,3.80076482]
[1755145022154,10.11275447,207.69,207.61,34.98]
[1755145022449,0.69,207.68,207.61,34.98]
[1755145022862,0.69,207.68,207.61,37.43535552]
[1755145023142,0.69,207.7,207.61,38.12535552]
[1755145024142,0.69,207.7,207.61,2.45535552]
[1755145024455,0.69,207.7,207.62,35.0]
[1755145024742,0.06,207.77,207.65,10.0]
[1755145024946,0.06,207.77,207.7,34.6]
[1755145025246,0.06,207.77,207.71,35.83]
[1755145025742,0.06,207.77,207.72,0.69]
[1755145025942,0.06,207.77,207.73,0.69]
[1755145026142,0.06,207.77,207.74,0.69]
[1755145026317,0.69,207.83,207.75,0.69]
[1755145026521,0.69,207.83,207.76,35.14]
[1755145033758,0.69,207.85,207.76,35.14]
[1755145034751,0.69,207.85,207.76,35.83]
[1755145034929,0.69,207.85,207.77,69.2]
[1755145036653,0.69,207.85,207.78,0.69]
[1755145040156,0.69,207.85,207.78,134.39]
[1755145042780,0.69,207.85,207.78,133.7]
[1755145045079,0.69,207.85,207.79,69.16]
[1755145045361,0.69,207.85,207.8,34.88]
[1755145045537,0.06,207.86,207.8,34.88]
[1755145045867,0.69,207.84,207.79,69.16]
[1755145046034,0.69,207.84,207.8,34.88]
[1755145046865,0.69,207.84,207.8,38.79973258]
[1755145047160,0.69,207.83,207.8,34.88]
[1755145047358,0.69,207.82,207.8,34.88]
[1755145047544,0.06,207.86,207.8,34.88]
[1755145047739,0.69,207.81,207.8,34.88]
[1755145048441,0.69,207.84,207.8,34.88]
[1755145049071,9.42275447,207.91,207.8,34.88]
[1755145049643,9.42275447,207.9,207.8,34.88]
[1755145049845,9.42275447,207.93,207.81,0.69]
[1755145050344,0.06,207.85,207.81,0.69]
[1755145050849,0.06,207.85,207.82,0.69]
[1755145051047,0.06,207.85,207.83,0.69]
[1755145051245,0.06,207.85,207.84,34.88]
[1755145052776,0.06,207.85,207.84,35.57]
[1755145052943,6.1754737,208.01,207.84,35.57]
[1755145053143,0.68,207.96,207.85,0.69]
[1755145053943,6.1754737,208.03,207.85,0.69]
[1755145054153,0.68,208.0,207.85,0.69]
[1755145055185,0.68,208.0,207.9,34.58]
[1755145055352,0.68,208.0,207.91,35.57]
[1755145056062,0.68,208.0,207.91,38.01341024]
[1755145056781,0.68,208.0,207.91,3.13341024]
[1755145056946,0.68,208.0,207.92,34.86]
[1755145057351,0.68,208.0,207.93,0.69]
[1755145057556,0.68,208.0,207.92,34.86]
[1755145059749,0.68,208.0,207.93,0.69]
[1755145060095,0.68,208.03,207.93,0.69]
[1755145060952,9.398818,208.12,207.93,0.69]
[1755145061146,10.0,208.26,207.98,10.0]
[1755145061459,9.39881772,208.2,207.99,35.55]
[1755145061666,0.68,208.19,208.03,10.0]
[1755145062052,0.68,208.19,208.04,0.69]
[1755145062252,10.0,208.27,208.04,0.69]
[1755145062253,10.0,208.27,208.05,35.04]
[1755145062468,0.68,208.23,208.06,35.53713239]
[1755145062658,0.68,208.23,208.07,0.69]
[1755145064288,0.68,208.27,208.1,10.0]
[1755145064664,0.68,208.27,208.11,0.69]
[1755145064870,0.68,208.27,208.12,35.06]
[1755145065097,0.68,208.27,208.19,34.56]
[1755145065259,10.0,208.4,208.2,35.73]
[1755145065260,0.68,208.31,208.2,35.73]
[1755145065463,0.68,208.34,208.21,0.69]
[1755145065850,10.0,208.46,208.21,0.69]
[1755145066074,9.39881772,208.39,208.21,0.69]
[1755145066374,0.68,208.38,208.21,0.69]
[1755145068965,10.07881772,208.38,208.22,35.04]
[1755145069168,10.07881772,208.38,208.23,0.69]
[1755145069368,0.68,208.37,208.23,0.69]
[1755145070161,0.68,208.37,208.24,35.04]
[1755145070471,0.68,208.37,208.25,0.69]
[1755145070672,9.39881772,208.31,208.2,0.69]
[1755145070883,0.68,208.3,208.21,35.02]
[1755145071782,10.07881772,208.3,208.18,0.69]
[1755145072080,0.68,208.29,208.19,35.04]
[1755145072458,0.68,208.29,208.2,35.06]
[1755145072653,10.07881772,208.29,208.07,10.0]
[1755145072875,9.39881772,208.25,208.13,35.75]
[1755145073284,10.07881772,208.24,208.13,35.06]
[1755145073465,0.68,208.23,208.13,35.06]
[1755145073658,9.39881772,208.2,208.07,0.69]
[1755145073864,0.68,208.19,208.08,35.08]
[1755145074660,0.68,208.19,208.09,0.69]
[1755145075096,0.68,208.19,208.1,69.04]
[1755145075280,10.07881772,208.19,208.1,69.04]
[1755145075580,9.39881772,208.16,208.1,69.04]
[1755145075781,0.68,208.15,208.1,34.52]
[1755145076084,12.00231505,208.3,208.08,35.08]
[1755145076085,0.68,208.21,208.11,0.69]
[1755145076273,0.68,208.24,208.11,6.12205466]
[1755145076470,0.68,208.24,208.12,0.69]
[1755145077175,0.68,208.27,208.12,0.69]
[1755145078471,10.07881772,208.27,208.12,0.69]
[1755145078666,0.68,208.26,208.12,0.69]
[1755145078889,0.68,208.29,208.12,0.69]
[1755145080381,10.07881772,208.29,208.12,0.69]
[1755145080571,0.72,208.28,208.12,0.69]
[1755145081180,10.11881772,208.28,208.12,0.69]
[1755145081470,0.72,208.27,208.12,0.69]
[1755145081670,0.06,208.33,208.14,34.43306671]
[1755145081987,0.06,208.33,208.18,34.99289453]
[1755145082182,0.06,208.33,208.19,36.3]
[1755145082489,0.06,208.33,208.2,0.66]
[1755145082887,0.06,208.33,208.22,10.0]
[1755145083083,0.06,208.33,208.23,0.66]
[1755145083594,0.06,208.33,208.24,15.43205466]
[1755145083901,0.06,208.33,208.25,0.66]
[1755145084591,0.06,208.33,208.25,3.1073303]
[1755145085118,0.06,208.33,208.3,34.52]
[1755145085268,0.06,208.33,208.31,35.74]
[1755145085465,0.06,208.33,208.31,36.4]
[1755145085691,0.06,208.33,208.32,0.66]
[1755145086478,0.72,208.39,208.32,0.66]
[1755145086680,0.72,208.43,208.32,0.66]
[1755145087199,0.72,208.47,208.32,0.66]
[1755145088580,0.72,208.47,208.33,35.76]
[1755145088791,0.72,208.47,208.34,0.66]
[1755145088991,0.06,208.46,208.34,0.66]
[1755145089192,0.06,208.44,208.34,0.66]
[1755145090801,0.06,208.44,208.34,3.160109]
[1755145091286,0.06,208.44,208.35,0.66]
[1755145092200,0.06,208.44,208.37,10.0]
[1755145092499,0.06,208.44,208.38,0.66]
[1755145093283,0.72,208.56,208.38,6.09205466]
[1755145093483,0.72,208.56,208.39,23.82172982]
[1755145093789,0.72,208.56,208.4,0.66]
[1755145094105,0.72,208.56,208.41,35.6]
[1755145094280,0.72,208.56,208.42,0.66]
[1755145094800,0.72,208.56,208.43,35.58]
[1755145095113,10.0,208.69,208.44,69.62]
[1755145095114,9.39881772,208.58,208.44,69.62]
[1755145095290,9.39881772,208.64,208.45,35.56]
[1755145095491,9.39881772,208.58,208.45,35.56]
[1755145095894,19.39881772,208.64,208.45,35.56]
[1755145096099,9.39881772,208.52,208.45,35.56]
[1755145096297,9.39881772,208.52,208.44,68.96]
[1755145096504,9.39881772,208.47,208.45,35.54]
[1755145096679,9.39881772,208.46,208.37,3.79624016]
[1755145096883,9.39881772,208.44,208.3,0.66]
[1755145097104,9.39881772,208.45,208.3,0.66]
[1755145097290,0.6,208.43,208.3,4.54770657]
[1755145097701,9.99881772,208.43,208.3,4.54770657]
[1755145097893,0.6,208.42,208.31,35.52]
[1755145098206,9.99881772,208.42,208.31,35.52]
[1755145098584,3.79624,208.57,208.31,35.52]
[1755145098585,9.39881772,208.39,208.31,35.52]
[1755145098785,0.6,208.38,208.31,35.52]
[1755145100382,0.6,208.41,208.31,36.18]
[1755145101586,9.99881772,208.41,208.31,36.18]
[1755145102197,0.6,208.4,208.32,35.48]
[1755145102522,0.6,208.4,208.33,35.48]
[1755145103990,0.6,208.45,208.34,0.66]
[1755145105097,0.6,208.45,208.35,69.0]
[1755145105493,0.6,208.45,208.36,0.66]
[1755145106702,0.6,208.45,208.35,34.5]
[1755145106898,9.39881772,208.4,208.33,35.48]
[1755145107099,0.6,208.39,208.33,35.48]
[1755145108117,9.39881772,208.37,208.33,35.48]
[1755145108301,0.6,208.36,208.33,35.48]
[1755145108501,9.39881772,208.38,208.33,35.48]
[1755145108710,0.6,208.35,208.33,35.48]
[1755145109134,0.6,208.4,208.33,35.48]
[1755145109310,0.6,208.4,208.33,36.14]
[1755145109945,0.6,208.4,208.33,35.48]
[1755145110921,9.99881772,208.43,208.33,35.48]
[1755145111125,0.6,208.42,208.33,35.48]
[1755145111838,0.6,208.46,208.34,0.72]
[1755145114520,0.6,208.46,208.33,35.48]
[1755145114717,9.39881772,208.42,208.33,35.48]
[1755145114913,0.6,208.41,208.34,34.5]
[1755145115240,9.39881772,208.45,208.34,69.72]
[1755145115442,0.6,208.43,208.34,35.22]
[1755145116222,0.6,208.43,208.34,0.72]
[1755145117141,0.6,208.43,208.33,35.48]
[1755145117329,9.39881772,208.42,208.33,35.48]
[1755145117528,0.6,208.41,208.33,35.48]
[1755145118043,0.6,208.41,208.33,35.51]
[1755145119641,9.39881772,208.36,208.33,35.51]
[1755145119943,9.99881772,208.35,208.33,35.51]
[1755145120233,9.99881772,208.34,208.33,35.51]
[1755145120625,0.6,208.34,208.33,35.51]
[1755145122047,9.99881772,208.34,208.33,35.51]
[1755145122820,9.39881772,208.34,208.33,35.51]
[1755145123332,9.99881772,208.34,208.33,35.51]
[1755145123722,9.39881772,208.34,208.33,35.51]
[1755145124833,0.6,208.39,208.33,35.51]
[1755145125019,0.6,208.39,208.34,69.0]
[1755145125217,9.39881772,208.48,208.35,35.52]
[1755145125218,0.6,208.38,208.35,35.52]
[1755145125445,9.39881772,208.38,208.35,36.24]
[1755145125645,9.398818,208.46,208.35,35.52]
[1755145125646,9.39881772,208.36,208.35,35.52]
[1755145125835,9.99881772,208.36,208.34,34.5]
[1755145126044,9.99881772,208.35,208.34,34.5]
[1755145126223,9.99881772,208.35,208.34,35.58]
[1755145128646,9.39881772,208.35,208.34,35.58]
[1755145128837,9.99881772,208.35,208.34,35.58]
[1755145129653,0.6,208.43,208.34,36.3]
[1755145130526,0.6,208.43,208.35,0.72]
[1755145130527,9.39881772,208.4,208.35,0.72]
[1755145130724,9.39881772,208.4,208.36,0.72]
[1755145130945,0.6,208.43,208.36,0.72]
[1755145131474,9.39881772,208.4,208.36,0.72]
[1755145131773,0.6,208.46,208.37,0.72]
[1755145131952,0.6,208.49,208.37,0.72]
[1755145132154,9.39881772,208.45,208.37,0.72]
[1755145132366,9.39881772,208.4,208.37,0.72]
[1755145132544,9.39881772,208.4,208.34,36.3]
[1755145132938,9.39881772,208.39,208.35,0.72]
[1755145133144,0.6,208.44,208.35,0.72]
[1755145134772,9.39881772,208.4,208.36,36.0]
[1755145134972,9.39881772,208.43,208.37,69.72]
[1755145135264,15.90803269,208.58,208.37,69.72]
[1755145135265,0.6,208.49,208.38,0.72]
[1755145135845,9.39881772,208.45,208.38,0.72]
[1755145136451,0.6,208.54,208.38,0.72]
[1755145136772,9.39881772,208.49,208.38,0.72]
[1755145137069,9.39881772,208.48,208.38,0.72]
[1755145137476,9.39881772,208.49,208.38,0.72]
[1755145137767,9.39881772,208.48,208.38,0.72]
[1755145137972,0.6,208.52,208.38,0.72]
[1755145138359,9.39881772,208.49,208.38,0.72]
[1755145138553,9.39881772,208.5,208.38,0.72]
[1755145139372,0.06,208.58,208.38,0.72]
[1755145139373,9.39881772,208.48,208.38,0.72]
[1755145139750,9.39881772,208.46,208.38,0.72]
[1755145139950,9.39881772,208.47,208.38,0.72]
[1755145140154,4.85452894,208.58,208.38,0.72]
[1755145140459,9.39881772,208.48,208.38,0.72]
[1755145140671,9.39881772,208.44,208.38,0.72]
[1755145140973,0.6,208.45,208.39,36.04]
[1755145141167,9.39881772,208.43,208.39,36.04]
[1755145141467,0.6,208.48,208.39,36.76]
[1755145141669,9.39881772,208.44,208.39,36.76]
[1755145141976,0.6,208.48,208.39,36.76]
[1755145142477,9.39881772,208.44,208.39,36.76]
[1755145142679,0.6,208.48,208.4,0.72]
[1755145142864,9.39881772,208.44,208.4,0.72]
[1755145143174,0.6,208.48,208.4,0.72]
[1755145143369,9.39881772,208.42,208.39,36.04]
[1755145143671,9.39881772,208.41,208.39,36.04]
[1755145144180,9.39881772,208.4,208.39,36.04]
[1755145144355,0.6,208.44,208.39,36.04]
[1755145144665,0.6,208.47,208.39,36.04]
[1755145144870,9.39881772,208.45,208.39,36.76]
[1755145145075,9.39881772,208.44,208.4,69.0]
[1755145145258,0.6,208.47,208.4,69.0]
[1755145145656,9.39881772,208.43,208.4,69.0]
[1755145145876,9.39881772,208.44,208.4,34.5]
[1755145146189,9.39881772,208.43,208.41,0.72]
[1755145146365,0.6,208.49,208.41,0.72]
[1755145146571,9.39881772,208.44,208.41,0.72]
[1755145147284,9.39881772,208.45,208.41,0.72]
[1755145147666,0.6,208.49,208.39,36.76]
[1755145147868,9.39881772,208.43,208.39,36.76]
[1755145148060,0.6,208.49,208.4,0.72]
[1755145148268,9.39881772,208.45,208.4,0.72]
[1755145148467,9.39881772,208.45,208.41,0.72]
[1755145148680,9.39881772,208.45,208.42,0.72]
[1755145149270,9.39881772,208.44,208.39,36.76]
[1755145149685,9.39881772,208.44,208.4,0.72]
[1755145149885,0.6,208.47,208.4,0.72]
[1755145150076,9.39881772,208.44,208.41,0.72]
[1755145150278,0.6,208.5,208.42,0.72]
[1755145150473,9.39881772,208.46,208.42,0.72]
[1755145150675,9.39881772,208.46,208.43,0.72]
[1755145151180,0.6,208.53,208.44,0.72]
[1755145151385,0.6,208.56,208.44,0.72]
[1755145151890,9.39881772,208.51,208.44,0.72]
[1755145152480,0.06,208.58,208.44,0.72]
[1755145152481,9.39881772,208.5,208.44,0.72]
[1755145152788,0.6,208.54,208.44,0.72]
[1755145152969,9.39881772,208.5,208.44,0.72]
[1755145153764,9.39881772,208.47,208.4,0.72]
[1755145153964,9.39881772,208.45,208.4,0.72]
[1755145154165,9.39881772,208.44,208.4,0.72]
[1755145154697,9.39881772,208.42,208.39,36.04]
[1755145155195,9.39881772,208.42,208.4,68.96]
[1755145155495,9.39881772,208.41,208.4,68.96]
[1755145155695,9.39881772,208.41,208.4,34.48]
[1755145156086,9.39881772,208.41,208.39,36.04]
[1755145156384,9.39881772,208.4,208.39,36.04]
[1755145156584,0.6,208.44,208.39,36.04]
[1755145156791,0.6,208.43,208.39,36.04]
[1755145157177,0.6,208.42,208.39,36.04]
[1755145157995,9.39881772,208.48,208.39,36.04]
[1755145158183,9.39881772,208.41,208.39,36.04]
[1755145158381,9.39881772,208.4,208.39,36.04]
[1755145159075,9.99881772,208.4,208.39,36.04]
[1755145159675,9.99881772,208.4,208.33,0.03]
[1755145159879,9.39881772,208.34,208.33,0.03]
[1755145160078,0.6,208.39,208.33,0.03]
[1755145160294,9.39881772,208.34,208.33,0.03]
[1755145160870,9.39881772,208.34,208.33,36.01]
[1755145161205,9.99881772,208.34,208.33,36.01]
[1755145161508,9.39881772,208.34,208.33,36.01]
[1755145162083,9.99881772,208.34,208.33,36.01]
[1755145162296,19.39763572,208.34,208.33,36.01]
[1755145162476,9.998818,208.34,208.33,36.01]
[1755145162799,19.39763572,208.34,208.33,36.01]
[1755145165006,19.39763572,208.34,208.33,105.01]
[1755145165381,19.39763572,208.34,208.33,69.0]
[1755145165702,18.79763572,208.34,208.33,104.92]
[1755145165884,18.79763572,208.34,208.31,0.03]
[1755145166206,9.398818,208.34,208.33,70.5]
[1755145166404,4.79942647,208.36,208.33,70.5]
[1755145166601,0.6,208.35,208.33,70.5]
[1755145166898,0.6,208.35,208.33,36.0]
[1755145167097,0.6,208.35,208.31,0.03]
[1755145167406,9.39881772,208.32,208.31,0.03]
[1755145167579,19.39763544,208.32,208.31,0.03]
[1755145168188,21.31439944,208.32,208.31,36.01]
[1755145168584,21.31439944,208.32,208.27,0.03]
[1755145168782,9.39881772,208.3,208.27,0.03]
[1755145169004,9.39881772,208.3,208.27,0.75]
[1755145169397,1.916489,208.31,208.27,0.75]
[1755145169611,9.39881772,208.3,208.27,0.75]
[1755145169996,9.39881772,208.3,208.29,36.01]
[1755145170806,1.916489,208.31,208.29,36.7]
[1755145171111,9.39881772,208.3,208.29,36.01]
[1755145171298,9.39881772,208.33,208.29,36.01]
[1755145171685,9.39881772,208.33,208.3,0.69]
[1755145172099,9.39881772,208.31,208.29,36.01]
[1755145172290,9.39881772,208.3,208.29,36.01]
[1755145173090,9.39881772,208.3,208.29,36.7]
[1755145174103,9.39881772,208.3,208.29,36.01]
[1755145174311,9.39881772,208.3,208.29,36.7]
[1755145175098,9.39881772,208.3,208.29,105.01]
[1755145175286,9.39881772,208.3,208.29,105.7]
[1755145175899,9.39881772,208.31,208.29,105.7]
[1755145176103,4.7980295,208.42,208.3,0.69]
[1755145176405,9.39881772,208.31,208.3,0.69]
[1755145176811,9.39881772,208.31,208.29,105.01]
[1755145177011,9.39881772,208.3,208.29,105.01]
[1755145177205,9.39881772,208.3,208.29,70.51]
[1755145177593,9.39881772,208.3,208.29,71.2]
[1755145180202,9.39881772,208.3,208.29,70.51]
[1755145180515,9.39881772,208.3,208.29,36.7]
[1755145180906,14.371601,208.34,208.29,36.7]
[1755145181215,9.39881772,208.32,208.3,0.69]
[1755145181417,9.39881772,208.32,208.29,36.01]
[1755145181590,9.39881772,208.33,208.31,0.69]
[1755145181797,9.39881772,208.32,208.31,0.69]
[1755145183625,9.39881772,208.35,208.31,0.69]
[1755145183915,9.39881772,208.36,208.31,0.69]
[1755145184124,9.39881772,208.35,208.31,0.69]
[1755145184420,9.39881772,208.35,208.32,0.69]
[1755145184627,9.39881772,208.35,208.33,0.69]
[1755145185003,9.39881772,208.35,208.34,69.0]
[1755145186021,9.39881772,208.35,208.34,69.69]
[1755145186321,9.39881772,208.35,208.34,69.0]
[1755145188206,9.39881772,208.35,208.34,34.5]
[1755145188427,9.39881772,208.35,208.34,35.64]
[1755145188926,9.99881772,208.35,208.34,35.64]
[1755145189614,9.39881772,208.35,208.34,35.64]
[1755145190712,6.15134461,208.35,208.34,35.64]
[1755145192139,6.15134461,208.35,208.34,36.33]
[1755145193334,6.15134461,208.35,208.34,35.64]
[1755145194309,6.15134461,208.35,208.34,36.33]
[1755145194542,0.06,208.36,208.34,36.33]
[1755145194715,0.06,208.36,208.35,0.69]
[1755145194906,0.06,208.36,208.35,35.19]
[1755145195262,0.06,208.36,208.35,69.69]
[1755145196308,0.06,208.36,208.35,0.69]
[1755145200718,6.21134461,208.36,208.34,35.64]
[1755145200919,6.15134461,208.35,208.34,35.64]
[1755145201448,6.15134461,208.35,208.29,0.73]
[1755145201621,6.15134461,208.33,208.3,35.4]
[1755145201822,6.15134461,208.34,208.31,0.7]
[1755145202045,6.15134461,208.34,208.32,0.7]
[1755145202225,0.06,208.36,208.3,35.4]
[1755145202226,6.15134461,208.35,208.33,0.7]
[1755145202434,6.15134461,208.35,208.34,0.7]
[1755145202766,6.15134461,208.35,208.32,0.7]
[1755145202949,6.15134461,208.34,208.32,0.7]
[1755145203446,6.15134461,208.33,208.32,0.7]
[1755145204243,0.06,208.36,208.32,0.7]
[1755145204536,6.15134461,208.33,208.3,36.1]
[1755145204738,6.15134461,208.33,208.31,0.7]
[1755145204937,6.15134461,208.32,208.31,0.7]
[1755145205120,6.15134461,208.32,208.31,69.7]
[1755145205321,6.15134461,208.33,208.31,69.7]
[1755145205518,0.06,208.36,208.32,0.7]
[1755145209045,0.06,208.36,208.3,35.4]
[1755145209046,0.06,208.36,208.33,0.7]
[1755145209748,6.21134461,208.36,208.33,0.7]
[1755145210046,6.15134461,208.35,208.31,0.7]
[1755145210354,0.06,208.36,208.32,0.7]
[1755145210545,6.21134461,208.36,208.32,0.7]
[1755145210941,0.06,208.36,208.33,0.7]
[1755145211148,0.06,208.36,208.34,0.7]
[1755145214628,0.06,208.36,208.35,0.7]
[1755145215035,0.06,208.36,208.35,69.7]
[1755145216955,0.06,208.36,208.35,0.7]
[1755145224167,0.06,208.36,208.35,35.9]
[1755145224866,0.06,208.36,208.35,169.6]
[1755145225041,0.06,208.36,208.35,238.56]
[1755145225436,0.06,208.39,208.38,10.0]
[1755145225658,0.71,208.64,208.43,10.0]
[1755145225846,0.71,208.64,208.4,28.8]
[1755145225847,0.71,208.64,208.45,10.0]
[1755145226046,0.71,208.64,208.46,16.61212012]
[1755145226254,0.71,208.64,208.47,0.7]
[1755145226439,0.71,208.64,208.48,35.16]
[1755145226643,0.71,208.64,208.49,0.7]
[1755145227059,10.029939,208.74,208.49,12.48579845]
[1755145227243,0.71,208.66,208.5,11.78579845]
[1755145227447,0.71,208.68,208.51,0.7]
[1755145227769,0.71,208.68,208.52,35.48]
[1755145228064,6.15134461,208.64,208.53,36.2]
[1755145228256,0.71,208.63,208.54,0.7]
[1755145228655,6.86134461,208.63,208.55,35.48]
[1755145229163,0.71,208.62,208.55,35.48]
[1755145230467,6.84134461,208.64,208.55,36.2]
[1755145230640,9.9250272,208.67,208.56,0.72]
[1755145230847,10.6150272,208.67,208.56,0.72]
[1755145231376,9.9250272,208.76,208.56,0.72]
[1755145231665,10.615027,208.78,208.56,0.72]
[1755145231666,0.69,208.68,208.56,0.72]
[1755145232868,10.6150272,208.7,208.56,0.72]
[1755145233236,0.69,208.72,208.56,134.42]
[1755145233443,0.69,208.72,208.57,0.72]
[1755145233772,10.6150272,208.72,208.57,0.72]
[1755145234366,10.6150272,208.72,208.57,6.58263268]
[1755145234543,10.6150272,208.72,208.58,0.72]
[1755145235042,10.6150272,208.72,208.6,34.46]
[1755145235238,0.69,208.71,208.61,0.72]
[1755145235442,0.69,208.71,208.62,35.38]
[1755145235443,9.9250272,208.69,208.62,35.38]
[1755145235671,10.6150272,208.71,208.62,35.38]
[1755145235881,10.6150272,208.71,208.62,36.1]
[1755145236755,10.6150272,208.7,208.62,36.1]
[1755145237746,9.9250272,208.68,208.62,35.38]
[1755145237945,10.6150272,208.69,208.62,36.1]
[1755145238249,9.9250272,208.68,208.62,35.38]
[1755145238858,10.6150272,208.67,208.62,35.38]
[1755145239045,9.9250272,208.63,208.56,0.72]
[1755145239257,4.79045782,208.75,208.57,35.3]
[1755145239479,9.9250272,208.61,208.58,35.3]
[1755145239650,10.6150272,208.61,208.58,35.3]
[1755145239978,0.69,208.61,208.58,35.3]
[1755145241163,9.9250272,208.62,208.58,35.3]
[1755145241364,9.9250272,208.6,208.58,35.3]
[1755145241566,10.6150272,208.6,208.58,35.3]
[1755145242577,10.6150272,208.59,208.58,35.3]
[1755145245081,0.69,208.59,208.58,104.22]
[1755145245384,10.6150272,208.59,208.58,104.22]
[1755145245944,210.0,208.7,208.58,104.22]
[1755145246143,9.9250272,208.61,208.58,104.22]
[1755145246384,9.9250272,208.6,208.58,104.22]
[1755145246682,0.69,208.62,208.58,104.22]
[1755145246977,0.69,208.61,208.58,69.76]
[1755145247281,9.9250272,208.6,208.58,35.3]
[1755145247662,10.6150272,208.59,208.58,35.3]
[1755145248755,20.5400544,208.59,208.44,2.44486002]
[1755145248950,9.9250272,208.48,208.43,0.72]
[1755145249152,9.9250272,208.48,208.44,0.72]
[1755145249654,9.9250272,208.5,208.45,0.72]
[1755145249860,9.9250272,208.53,208.45,0.72]
[1755145250070,9.9250272,208.53,208.46,35.14]
[1755145250261,9.9250272,208.53,208.47,0.72]
[1755145250948,9.9250272,208.54,208.47,0.72]
[1755145252177,9.9250272,208.52,208.47,0.72]
[1755145252557,9.9250272,208.53,208.48,0.72]
[1755145252754,0.69,208.56,208.49,0.72]
[1755145252952,9.9250272,208.54,208.49,0.72]